[Event "Azerbaijan Women Championship 2022"]
[Site "Baku"]
[Date "2022.05.17"]
[Round "1.1"]
[White "Hajiyeva, Laman"]
[Black "Balajayeva, Khanim"]
[Result "0-1"]
[ECO "B24"]
[WhiteElo "1971"]
[BlackElo "2376"]
[Annotator "TA"]
[PlyCount "96"]
[EventDate "2022.05.17"]
[EventType "tourn"]
[EventCountry "AZE"]
[SourceTitle "playchess.com"]
[Source "ChessBase"]
[SourceQuality "1"]
[TimeControl "40/5400+30:1800+30"]

{[%evp 17,96,-2,0,-12,3,-6,0,4,10,5,14,13,5,-13,-19,-16,-20,-53,-52,-64,-59,-61,-58,-62,-70,-57,-62,-60,-5,-14,-19,-40,-38,-38,-14,-46,-44,-83,-80,-80,-71,-80,-73,-80,-82,-80,-77,-82,-83,-87,-94,-96,-72,-158,-126,-331,-268,-335,-331,-320,-300,-449,-431,-550,-551,-702,-700,-694,-692,-666,-665,-556,-533,-857,-857,-813,-812,-781,-772,-775,-762]} 1. e4 {[%emt 0:00:03]} c5 {[%emt 0:00:15]} 2. Nc3 {[%emt 0:03:28]} Nc6 {[%emt 0:01:44]} 3. g3 {[%emt 0:00:32]} g6 {[%emt 0:02:02]} 4. Bg2 {[%emt 0:00:38]} Bg7 {[%emt 0:00:05]} 5. Nge2 {[%emt 0:02:46]} d6 {[%emt 0:04:46]} 6. d3 {[%emt 0:03:16]} e6 {[%emt 0:00:45]} 7. Be3 {[%emt 0:04:40]} Nge7 {[%emt 0:08:28]} 8. Qd2 {[%emt 0:11:37]} Nd4 $1 {[%emt 0:04:24] 8...Nd4 scores better than 8...0-0.} 9. O-O {[%emt 0:04:37]} O-O {[%emt 0:04:20]} 10. Rac1 {[%emt 0:13:48] B26: Closed Sicilian: 3 g3, lines with early Be3.} Qb6 {[#]} 11. Nd1 $146 {[%emt 0:07:32]} ({Predecessor:} 11. b3 Qb4 12. Nxd4 cxd4 13. Ne2 Qxd2 14. Bxd2 Nc6 15. b4 b5 16. e5 d5 17. f4 Bd7 {1-0 (39) Heimrath,R (2272)-Birkmann,G (1995) Ansbach 2000}) 11... Nxe2+ {[%emt 0:18:35]} 12. Qxe2 {[%emt 0:00:05] The position is equal.} Qa6 {[%emt 0:00:03]} 13. a3 {[%emt 0:17:29]} Nc6 {[%emt 0:00:38]} 14. Qd2 {[%emt 0:01:41]} Nd4 {[%emt 0:08:54]} 15. f4 {[%emt 0:01:26]} Bd7 {[%emt 0:02:01]} 16. g4 {[%emt 0:09:25]} f5 {[%emt 0:03:54]} 17. gxf5 {[%emt 0:01:59]} exf5 {[%emt 0:00:42]} 18. Nc3 {[%emt 0:07:49]} Bc6 {[%emt 0:03:58]} 19. Rfe1 {[%emt 0:02:12]} Rae8 {[%emt 0:07:02] Black is more active.} 20. Nd5 {[%emt 0:01:06]} Bxd5 {[%emt 0:01:21]} 21. exd5 {[%emt 0:00:02]} Qa4 {[%emt 0:05:51]} 22. Kh1 {[%emt 0:01:05]} Nb5 {[%emt 0:04:14]} ({Black should play} 22... a5 $15) 23. c3 $11 {[%emt 0:01:58]} Nc7 {[%emt 0:02:25]} 24. Qc2 {[%emt 0:00:01]} Qxc2 {[%emt 0:06:13]} 25. Rxc2 Rf7 {[%emt 0:01:54] ...Rfe7 is the strong threat.} 26. Rce2 {[%emt 0:01:36]} Rfe7 {Hoping for ...Bf6.} 27. Kg1 {[%emt 0:00:30] [#]} g5 $1 {[%emt 0:04:08] And now ...gxf4 would win.} 28. Kf1 {[%emt 0:00:29]} ({Don't blunder} 28. fxg5 $2 f4 29. Be4 fxe3 30. Rxe3 Re5 $19) 28... g4 29. Bf2 {[%emt 0:00:52]} Rxe2 {[%emt 0:03:09]} 30. Rxe2 {[%emt 0:00:02]} Rxe2 {[%emt 0:00:31]} 31. Kxe2 $17 {[%emt 0:00:02][%mdl 4096] Endgame KBB-KBN} Bf6 {[%emt 0:00:09]} 32. Kd2 {[%emt 0:02:17]} b6 {[%emt 0:00:05]} 33. Kc2 {[%emt 0:00:49]} Kf7 {[%emt 0:00:16]} 34. a4 {[%emt 0:00:21]} h5 {[%emt 0:01:36][%cal Bh7h5,Bh5h4,Bh4h3][%mdl 32]} 35. b4 {[%emt 0:00:43]} (35. Kd1 $142) 35... h4 {[%emt 0:01:13]} 36. Kb3 $2 {[%emt 0:00:27] [#] White does not recover from this.} (36. bxc5 $17 {is a better defense.} bxc5 37. d4 cxd4 38. cxd4) 36... h3 $19 {[%emt 0:00:28]} 37. Bh1 {[%emt 0:00:04]} Ke7 {[%emt 0:01:13]} 38. Kc4 {[%emt 0:00:58]} Kd7 {[%emt 0:00:15]} 39. bxc5 {[%emt 0:00:36]} (39. Kb3 $142 Ne8 40. Kc4) 39... bxc5 {[%emt 0:00:06] Black is clearly winning.} 40. d4 {[%emt 0:00:00]} cxd4 {[%emt 0:00:00]} 41. cxd4 {[%emt 0:05:43]} Kc8 {[%emt 0:01:42]} 42. Kd3 {[%emt 0:04:01]} Ne8 {[%emt 0:01:04]} 43. Be1 {[%emt 0:03:42]} Ng7 {[%emt 0:00:44]} 44. Ke3 {[%emt 0:00:15]} Nh5 {[%emt 0:00:29]} 45. a5 {[%emt 0:00:55]} Kb7 {[%emt 0:01:07]} 46. Bb4 {[%emt 0:04:01]} Be7 {[%emt 0:00:24]} 47. Be1 {[%emt 0:03:32]} Ka6 {[%emt 0:01:34]} 48. Bc3 {[%emt 0:03:43]} Kb5 {[%emt 0:00:20] Weighted Error Value: White=0.36/Black=0.06 (flawless)} 0-1

[Event "Azerbaijan Women Championship 2022"]
[Site "Baku"]
[Date "2022.05.17"]
[Round "1.2"]
[White "Fataliyeva, Ulviyya"]
[Black "Abdulla, Khayala"]
[Result "1/2-1/2"]
[ECO "E15"]
[WhiteElo "2348"]
[BlackElo "2219"]
[Annotator "TA"]
[PlyCount "145"]
[EventDate "2022.05.17"]
[EventType "tourn"]
[EventCountry "AZE"]
[SourceTitle "playchess.com"]
[Source "ChessBase"]
[SourceQuality "1"]
[TimeControl "40/5400+30:1800+30"]

{[%evp 19,145,9,23,12,12,10,29,30,29,29,22,23,35,40,124,105,162,164,160,162,164,164,154,134,139,132,130,136,162,164,154,122,129,130,130,126,121,95,116,102,115,66,65,44,44,43,44,44,44,15,15,0,0,0,0,0,0,0,0,0,0,0,0,0,0,0,0,0,0,0,0,0,0,0,0,0,0,0,0,0,0,0,0,0,0,0,0,0,0,0,0,0,0,0,0,0,0,0,0,0,0,0,0,0,0,0,0,0,0,0,0,0,0,0,0,0,0,0,0,0,0,0,0,0,0,0,0,0]} 1. d4 {[%emt 0:00:00]} Nf6 {[%emt 0:00:19]} 2. c4 {[%emt 0:00:04]} e6 {[%emt 0:00:04]} 3. Nf3 {[%emt 0:00:03]} b6 {[%emt 0:01:06]} 4. g3 {[%emt 0:00:20]} Ba6 {[%emt 0:00:23]} 5. b3 {[%emt 0:00:03]} Bb4+ {[%emt 0:00:41]} 6. Bd2 {[%emt 0:00:06]} Be7 {[%emt 0:00:37]} 7. Nc3 {[%emt 0:00:05]} d5 {[%emt 0:02:11]} 8. cxd5 {[%emt 0:04:22]} exd5 {[%emt 0:02:22]} 9. Bg2 {[%emt 0:00:05]} O-O {[%emt 0:03:39]} 10. O-O {[%emt 0:00:04]} c6 {[%emt 0:05:24]} 11. a3 {[%emt 0:06:40] [#] E15: Queen's Indian: 4 g3 sidelines, 4 g3 Ba6 and 4 g3 Bb7 early deviations.} Nbd7 $146 {[%emt 0:06:21]} ({Predecessor:} 11... Re8 12. b4 Nbd7 13. b5 Bxb5 14. Nxb5 cxb5 15. Qb3 a6 16. Ne5 Nxe5 17. dxe5 Ne4 18. Be3 Bc5 {0-1 (40) Vignesh,N (2427)-Hansen,E (2606) Chess.com INT 2022}) 12. b4 {[%emt 0:01:26]} Ne4 {[%emt 0:06:17]} 13. Nxe4 {[%emt 0:09:33] White has an edge.} dxe4 {[%emt 0:00:03]} 14. Ne5 {[%emt 0:00:23]} Nxe5 {[%emt 0:08:12]} 15. dxe5 {[%emt 0:00:33]} Qd4 {[%emt 0:20:00]} 16. Bf4 {[%emt 0:03:53]} Qc4 {[%emt 0:02:58]} ({Black should try} 16... Qxd1 $14 17. Rfxd1 Rad8) 17. Qd7 {[%emt 0:02:39]} Rfe8 {[%emt 0:01:41]} (17... Qe6 $16 {was worth a try.} 18. Qxe6 fxe6) 18. Rfc1 $36 {[%emt 0:03:12][%mdl 2048] White is in control.} Qd5 {[%emt 0:06:41]} (18... Qxe2 $2 19. Bf1 Qb2 20. Bxa6 $18) 19. Qf5 {[%emt 0:00:47]} ({But not} 19. Qxc6 Qxc6 20. Rxc6 f5 $16) 19... g6 {[%emt 0:03:54]} 20. Qxe4 {[%emt 0:01:42] Hoping for Qe3.} Rac8 {[%emt 0:03:40] [#]} 21. Rxc6 $3 {[%emt 0:14:28][%mdl 512]} Qxe4 {[%emt 0:00:25]} 22. Bxe4 {[%emt 0:00:17]} Bxe2 {[%emt 0:00:22]} 23. Rac1 {[%emt 0:00:26]} Rxc6 {[%emt 0:04:28]} 24. Rxc6 {[%emt 0:00:14]} Bf8 {[%emt 0:02:53][%cal Og6g5]} 25. Rc7 {[%emt 0:16:19]} g5 {[%emt 0:01:23]} 26. Bc6 {[%emt 0:01:10] White is more active.} ({Inferior is} 26. Bxg5 Rxe5 27. Bxh7+ Kxh7 $17) 26... Re7 {[%emt 0:02:26]} 27. Rxe7 {[%emt 0:00:05]} Bxe7 $16 {[%emt 0:00:02][%mdl 4096] Endgame KBB-KBB} 28. Be3 {[%emt 0:00:34]} g4 {[%emt 0:01:30]} 29. Bh6 {[%emt 0:00:38]} a5 {[%emt 0:02:29]} 30. bxa5 {[%emt 0:02:11]} (30. Bd2 $16) 30... bxa5 $14 {[%emt 0:00:03]} 31. a4 {[%emt 0:00:14]} Bf8 {[%emt 0:07:37]} 32. Bg5 {[%emt 0:04:57]} Bb4 {[%emt 0:01:29]} 33. Kg2 {[%emt 0:00:43]} Bd1 {[%emt 0:00:40]} 34. Bh6 {[%emt 0:10:09]} Bc3 {[%emt 0:00:48] The position is equal.} 35. h3 {[%emt 0:00:24]} gxh3+ {[%emt 0:01:13]} 36. Kxh3 {[%emt 0:00:02]} Bxe5 {[%emt 0:00:08]} 37. g4 {[%emt 0:01:10]} Bc3 {[%emt 0:01:58]} 38. Kg3 {[%emt 0:05:47]} Bb3 {[%emt 0:00:52]} 39. Kf3 {[%emt 0:01:24]} Bd1+ {[%emt 0:00:36]} 40. Kg3 {[%emt 0:00:00]} Be1 {[%emt 0:00:00]} 41. Be3 {[%emt 0:02:17]} f6 {[%emt 0:05:58]} 42. Bd7 {[%emt 0:07:30]} Kf7 {[%emt 0:01:35]} 43. Bc5 {[%emt 0:00:37]} h5 {[%emt 0:04:13]} 44. gxh5 {[%emt 0:00:32]} Bxh5 {[%emt 0:00:07]} 45. Kf4 {[%emt 0:00:13]} Bd1 {[%emt 0:01:40]} 46. Ke4 {[%emt 0:00:30]} Bc2+ {[%emt 0:03:51]} 47. Kd5 {[%emt 0:02:52]} Kg6 {[%emt 0:01:05]} 48. Be3 {[%emt 0:00:35]} f5 {[%emt 0:03:33]} 49. Be8+ {[%emt 0:01:31]} Kf6 {[%emt 0:00:28]} 50. f4 {[%emt 0:00:42]} Bb3+ {[%emt 0:00:23]} 51. Kc5 {[%emt 0:02:14]} Bb4+ {[%emt 0:02:25]} 52. Kb5 {[%emt 0:01:25]} Bd1 {[%emt 0:02:06]} 53. Kb6 {[%emt 0:00:34]} Ke6 {[%emt 0:00:10]} (53... Ke7 $5 {[%cal Re7e8]} 54. Bb5 Kd6 $11) 54. Bc6 {[%emt 0:01:23]} Kd6 {[%emt 0:00:40]} 55. Bd4 {[%emt 0:01:02]} Bd2 {[%emt 0:01:23]} 56. Be5+ {[%emt 0:00:17]} Ke6 {[%emt 0:00:11]} 57. Bc7 {[%emt 0:03:29]} Bb3 {[%emt 0:01:53]} 58. Kb5 {[%emt 0:03:32]} Bd5 {[%emt 0:01:34]} 59. Be8 {[%emt 0:02:38]} Be4 {[%emt 0:00:15]} 60. Kc5 {[%emt 0:06:05]} Bc2 {[%emt 0:01:27]} 61. Bc6 {[%emt 0:01:46]} Bb3 {[%emt 0:00:47]} 62. Be5 {[%emt 0:00:49]} Be3+ {[%emt 0:01:07]} 63. Kb5 {[%emt 0:00:04]} Bd2 {[%emt 0:00:03]} 64. Kb6 {[%emt 0:00:11]} Bd5 {[%emt 0:01:35]} 65. Bb5 {[%emt 0:00:12]} Bb3 {[%emt 0:00:17]} 66. Be8 {[%emt 0:02:56]} Bc2 {[%emt 0:00:26]} 67. Bc6 {[%emt 0:01:49]} Bb3 {[%emt 0:01:22]} 68. Kc7 {[%emt 0:00:17]} Bc2 {[%emt 0:00:18]} 69. Kd8 {[%emt 0:01:35]} Be4 {[%emt 0:02:33]} 70. Bd7+ {[%emt 0:00:09]} Kd5 {[%emt 0:00:19]} 71. Ke7 {[%emt 0:00:10]} Bc2 {[%emt 0:00:47]} 72. Kf6 {[%emt 0:00:28]} Kc4 {[%emt 0:01:06]} 73. Bxf5 {Blacks defense is rewarded with a draw.  Weighted Error Value: White=0.06 (flawless) /Black=0.06 (flawless)} 1/2-1/2

[Event "Azerbaijan Women Championship 2022"]
[Site "Baku"]
[Date "2022.05.17"]
[Round "1.3"]
[White "Mammadova, Gulnar"]
[Black "Mamedjarova, Turkan"]
[Result "1-0"]
[ECO "C52"]
[WhiteElo "2387"]
[BlackElo "2264"]
[Annotator "TA"]
[PlyCount "69"]
[EventDate "2022.05.17"]
[EventType "tourn"]
[EventCountry "AZE"]
[SourceTitle "playchess.com"]
[Source "ChessBase"]
[SourceQuality "1"]
[TimeControl "40/5400+30:1800+30"]

{[%evp 12,69,61,62,69,23,33,29,47,22,20,15,55,50,75,58,101,68,78,71,67,76,70,0,18,7,6,11,65,41,79,39,59,58,52,40,79,68,97,67,338,328,393,390,328,129,420,462,468,465,1979,1982,29988,29977,29992,29993,29993,29994,29995,29996]} 1. e4 {[%emt 0:00:02]} e5 {[%emt 0:00:10]} 2. Nf3 {[%emt 0:00:09]} Nc6 {[%emt 0:00:07]} 3. Bc4 {[%emt 0:00:10]} Bc5 {[%emt 0:00:12]} 4. b4 {[%emt 0:00:19]} Bxb4 {[%emt 0:01:09]} 5. c3 {[%emt 0:00:11]} Ba5 {[%emt 0:00:34]} 6. d4 {[%emt 0:00:41]} Qf6 {[%emt 0:10:14] Recently 6...d6 got a lot of attention.} 7. O-O $1 {[%emt 0:05:45]} Bb6 {[%emt 0:07:25] C52: Evans Gambit Accepted: 5 c3 Ba5.} 8. Bg5 {[%emt 0:06:58] White is more active.} (8. a4 $14 {is more appropriate.}) 8... Qg6 $11 {[%emt 0:07:15]} 9. dxe5 {[%emt 0:07:08] [#]} Nge7 $146 {[%emt 0:10:30][%cal Bg8e7,Be7g6,Bg6f4][%mdl 32] White has an edge.} ({Predecessor:} 9... f6 10. exf6 gxf6 11. Bf4 Nge7 12. Re1 d6 13. Nh4 Qg4 14. Qxg4 Bxg4 15. h3 Bh5 {0-1 (38) Kobl,R (2048)-Lippert,F (2032) Groebenzell 2018}) 10. Nbd2 {[%emt 0:07:48]} O-O {[%emt 0:11:01]} 11. Bf4 {[%emt 0:07:06] aiming for Nh4.} Qg4 {[%emt 0:04:44] Against Nh4} 12. Bg3 {[%emt 0:04:04]} Ng6 {[%emt 0:04:09]} 13. Kh1 {[%emt 0:04:19]} Qh5 {[%emt 0:08:16]} 14. Be2 {[%emt 0:03:04][%cal Of3d4]} Qh6 {[%emt 0:01:46] [#]} 15. Nc4 $1 {[%emt 0:05:16]} Nf4 {[%emt 0:06:08]} 16. Nxb6 {[%emt 0:13:55]} axb6 {[%emt 0:00:12]} 17. Bb5 {[%emt 0:02:58]} ({White should try} 17. Nd4 $1 $14 Nxe2 18. Qxe2) 17... f6 {[%emt 0:05:10]} (17... Re8 $5 {[%cal Rc6e5]}) 18. exf6 {[%emt 0:05:12]} Qxf6 {[%emt 0:00:56]} 19. Nd4 {[%emt 0:02:05]} Nxd4 {[%emt 0:02:06]} (19... Ra5 $11 20. Rb1 d6) 20. cxd4 $14 {[%emt 0:01:17]} d6 {[%emt 0:01:14]} 21. Qc1 {[%emt 0:04:32]} Nxg2 {[%emt 0:04:09] Strongly threatening ...Qf3.} 22. f4 $1 {[%emt 0:03:55]} ({But not} 22. Qxc7 Qf3 23. Qc4+ (23. Bc4+ $2 Kh8 $19) 23... d5 $17) 22... Bh3 {[%emt 0:01:19]} 23. Rf2 {[%emt 0:02:29][%mdl 1024] Bc4+ is the strong threat. White has compensation.} Nh4 {[%emt 0:06:25]} 24. f5 {[%emt 0:00:46]} Kh8 {[%emt 0:02:02][%cal Of6d4]} 25. Qb2 {[%emt 0:05:49]} d5 $2 {[%emt 0:01:07][%mdl 8192]} (25... Qg5 $14) 26. Rg1 $18 {[%emt 0:01:46] Black must now prevent Be5.} Qh6 {[%emt 0:02:11]} (26... dxe4 $2 27. Be5 $18) 27. Bf4 {[%emt 0:01:54]} Qh5 {[%emt 0:00:02]} 28. Be2 {[%emt 0:00:14] Inhibits Bg4.} (28. Be5 $18 Rf7 29. Be2) 28... Qe8 $2 {[%emt 0:00:14][%mdl 8192] A mistake that costs the game.} (28... Bxf5 $16 {was called for.} 29. exf5 (29. Bxh5 Bxe4+ 30. Rgg2 Nxg2 $11) 29... Qxf5) 29. Be5 {[%emt 0:00:15][%cal Bf4e5,Be5g7,Bg7f8][%mdl 32]} Ng6 {[%emt 0:02:05]} 30. Bh5 {[%emt 0:01:34][%cal Be2h5,Bh5g6,Bg6e4][%mdl 96] Pin. This bishop pair is nice.} dxe4 {[%emt 0:00:22]} (30... Nxe5 $142 31. Bxe8 Nd3) 31. fxg6 {[%emt 0:01:14][%cal Oe5g7] White wants to mate with Bxg7+!} hxg6 {[%emt 0:01:26]} 32. Bxg6 {[%emt 0:01:22] White mates.} Qc6 {[%emt 0:00:18] [#]} 33. Bxg7+ $1 {[%emt 0:00:30][%mdl 512]} Kg8 {[%emt 0:00:21]} 34. Bxf8 {[%emt 0:00:15]} e3+ {[%emt 0:00:17]} 35. Be4+ {[%emt 0:00:11] Weighted Error Value: White=0.17 (very precise) /Black=0.67} 1-0

[Event "Azerbaijan Women Championship 2022"]
[Site "Baku"]
[Date "2022.05.17"]
[Round "1.4"]
[White "Beydullayeva, Govhar"]
[Black "Allahverdiyeva, Ayan"]
[Result "1-0"]
[ECO "D34"]
[WhiteElo "2384"]
[BlackElo "2120"]
[Annotator "TA"]
[PlyCount "75"]
[EventDate "2022.05.17"]
[EventType "tourn"]
[EventCountry "AZE"]
[SourceTitle "playchess.com"]
[Source "ChessBase"]
[SourceQuality "1"]
[TimeControl "40/5400+30:1800+30"]

{[%evp 18,75,28,33,20,20,33,22,30,24,33,27,28,25,45,0,0,0,8,-15,45,0,0,0,0,-64,-72,-75,-81,-55,6,12,12,11,5,-12,0,-51,97,95,108,108,124,81,95,83,88,90,138,137,277,147,144,124,161,146,579,568,566,562]} 1. d4 {[%emt 0:00:02]} d5 {[%emt 0:00:58]} 2. c4 {[%emt 0:00:07]} e6 {[%emt 0:00:03]} 3. Nc3 {[%emt 0:00:12]} c5 {[%emt 0:00:39]} 4. cxd5 {[%emt 0:01:23]} exd5 {[%emt 0:01:13]} 5. Nf3 {[%emt 0:00:17]} Nc6 {[%emt 0:00:12]} 6. g3 {[%emt 0:01:20]} Nf6 {[%emt 0:00:09]} 7. Bg2 {[%emt 0:01:05]} Be7 {[%emt 0:00:06]} 8. O-O {[%emt 0:03:58]} O-O {[%emt 0:00:06]} 9. dxc5 {[%emt 0:03:05]} Bxc5 {[%emt 0:00:26]} 10. a3 {[%emt 0:00:50]} Ne4 {[%emt 0:08:17] D34: Tarrasch Defence: 6 g3 Nf6 7 Bg2 Be7.} 11. Qc2 {[%emt 0:07:23]} Nxc3 {[%emt 0:09:28]} 12. Qxc3 {[%emt 0:00:07]} Bb6 {[%emt 0:08:31] The position is equal.} 13. b4 {[%emt 0:03:07]} Bf5 {[%emt 0:10:16]} 14. Bb2 {[%emt 0:04:25][%csl Gb2][%cal Rc3g7]} d4 {[%emt 0:03:16]} 15. Qd2 {[%emt 0:02:07]} Be4 {[%emt 0:09:13] [#]} 16. Rfd1 $146 {[%emt 0:13:41]} (16. b5 $5 {[%cal Rb5c6]} Na5 17. Qf4 $14 (17. Nxd4 $2 Bxg2 18. Kxg2 Nc4 $19)) ({Predecessor:} 16. a4 a6 17. b5 Na5 18. Qb4 axb5 19. axb5 Qd5 20. Bxd4 Bxf3 21. Bxb6 Bxg2 22. Rfd1 {½-½ (41) Potkin,V (2666)-Moranda,W (2560) Legnica 2013}) 16... Qd5 $1 {[%emt 0:09:25]} 17. Qf4 {[%emt 0:07:28][%cal Of3d4]} Rae8 {[%emt 0:05:09]} 18. Rac1 {[%emt 0:03:25]} Re7 {[%emt 0:10:25]} (18... f6 $11) 19. Bf1 {[%emt 0:18:29]} (19. a4 $5 {[%cal Rb4b5]}) 19... Rfe8 {[%emt 0:10:27]} 20. Nd2 {[%emt 0:05:04]} Bc7 {[%emt 0:02:46]} 21. Qh4 {[%emt 0:00:37]} (21. Qg4 $11) 21... Qa2 $1 $15 {[%emt 0:00:50]} 22. Ba1 {[%emt 0:05:55] Strongly threatening b5.} Bc2 $1 {[%emt 0:00:02]} (22... Qxa3 $2 23. b5 $16) 23. Re1 {[%emt 0:00:07]} Bg6 {[%emt 0:02:23]} ({Black should try} 23... Bb6 $1 $15) 24. b5 $11 {[%emt 0:08:52]} Ne5 {[%emt 0:02:35]} 25. Qxd4 {[%emt 0:01:01] next Nc4 is good for White.} Bb6 $132 {[%emt 0:00:56][%mdl 2048] Black is not keeping still} 26. Qc3 {[%emt 0:01:12]} f6 {[%emt 0:00:01][%cal Oe5d3] Threatens to win with ...Nd3!} 27. Red1 {[%emt 0:02:37]} (27. Bb2 $11) 27... Kh8 {[%emt 0:04:13]} (27... Ng4 $1 $15 {stays ahead.} 28. e3 Nxe3 29. fxe3 Rxe3 30. Qc4+ Bf7) 28. Qb3 $16 {[%emt 0:03:10]} Bf7 {[%emt 0:00:59]} 29. Qxa2 {[%emt 0:00:40]} (29. Qb4 {is more complex.} Rd7 30. Bxe5 fxe5 31. Ne4) 29... Bxa2 {[%emt 0:00:01]} 30. h3 {[%emt 0:01:37] Against Ng4} Kg8 {[%emt 0:01:52]} 31. Bg2 {[%emt 0:00:23]} Nf7 {[%emt 0:00:27]} 32. e3 {[%emt 0:00:24]} Nd6 {[%emt 0:00:10] Against Nc4} ({Black should play} 32... Rd8) 33. a4 {[%emt 0:00:38][%cal Ba3a4,Ba4a5][%mdl 32]} Rd7 {[%emt 0:00:01] [#]} (33... Rd8 $16 34. Bc3 Red7) 34. Bc3 {[%emt 0:00:33]} (34. Ne4 $1 $18 {[%mdl 512]} Red8 {[#]} 35. Bxf6 $1 {[%mdl 512]} gxf6 36. Nxf6+ Kf8 37. Nxd7+ Rxd7 38. a5 Bxa5 39. Ra1) 34... Red8 {[%emt 0:00:15]} 35. Bf3 {[%emt 0:00:50]} Nf5 {[%emt 0:00:40]} 36. Ne4 {[%emt 0:01:41] Rxd7 is the strong threat.} Bb3 $2 {[%emt 0:01:22][%mdl 8192]} (36... Rxd1+ $16 37. Rxd1 Rxd1+ 38. Bxd1 Bd8) 37. Rxd7 $18 {[%emt 0:00:08]} Rxd7 {[%emt 0:00:02]} 38. a5 {[%emt 0:00:05] Weighted Error Value: White=0.22 (precise) /Black=0.46} 1-0

[Event "Azerbaijan Women Championship 2022"]
[Site "Baku"]
[Date "2022.05.18"]
[Round "2.1"]
[White "Mamedjarova, Turkan"]
[Black "Balajayeva, Khanim"]
[Result "1/2-1/2"]
[ECO "E21"]
[WhiteElo "2264"]
[BlackElo "2376"]
[Annotator "TA"]
[PlyCount "83"]
[EventDate "2022.05.17"]
[EventType "tourn"]
[EventCountry "AZE"]
[SourceTitle "playchess.com"]
[Source "ChessBase"]
[SourceQuality "1"]
[TimeControl "40/5400+30:1800+30"]

{[%evp 17,83,8,8,5,14,-10,0,0,0,0,-2,-17,0,0,0,-13,0,-4,0,0,0,0,0,7,8,4,70,57,57,48,66,-43,-54,-54,81,-75,-76,-83,-77,-59,0,0,83,-12,-9,-8,-11,-20,-22,-25,-31,-47,-32,-41,-36,-24,-25,-77,-34,-56,-17,-19,0,0,0,-2,-19,-12]} 1. d4 {[%emt 0:09:44]} Nf6 {[%emt 0:00:09]} 2. c4 {[%emt 0:02:20]} e6 {[%emt 0:00:19]} 3. Nc3 {[%emt 0:00:57]} Bb4 {[%emt 0:00:11]} 4. Nf3 b6 {[%emt 0:00:50]} 5. Bd2 {[%emt 0:12:51]} Bb7 {[%emt 0:00:47]} 6. e3 {[%emt 0:02:24]} O-O {[%emt 0:00:34]} 7. Bd3 {[%emt 0:00:21]} d5 {[%emt 0:00:30]} 8. O-O {[%emt 0:00:15]} dxc4 $1 {[%emt 0:02:06] The main line 8...dxc4 scores better than 8...Nbd7.} 9. Bxc4 {[%emt 0:00:58]} Nbd7 {[%emt 0:02:59]} 10. Qe2 {[%emt 0:02:37] E52: Nimzo-Indian: Rubinstein: 4...0-0 5 Nf3 d5 6 Bd3 b6.} a6 {[%emt 0:02:52]} 11. a4 {[%emt 0:03:30] [#]} c5 $146 {[%emt 0:04:10]} ({Predecessor:} 11... Qe7 12. Bd3 c5 13. dxc5 Nxc5 14. Bc2 Rac8 15. Rfd1 h6 16. Be1 a5 17. Nd4 Rfd8 {0-1 (53) Trisha,K (2180)-Blohberger,F (2502) Reykjavik 2021}) 12. Rac1 {[%emt 0:06:03]} Qb8 {[%emt 0:16:08]} 13. h3 {[%emt 0:03:17]} Rd8 {[%emt 0:06:35]} 14. Rfd1 {[%emt 0:11:00]} cxd4 {[%emt 0:04:26]} 15. exd4 {[%emt 0:01:58]} h6 {[%emt 0:00:44]} 16. Bd3 {[%emt 0:06:24]} Bf8 {[%emt 0:12:06]} 17. Ne5 {[%emt 0:03:22]} Qd6 {[%emt 0:04:12]} 18. Bf4 {[%emt 0:04:27][%cal Oe5f7]} Nd5 {[%emt 0:02:51]} 19. Bg3 {[%emt 0:05:53][%cal Oe5f7] Black must now prevent Nxf7!} (19. Qe4 $2 f5 20. Nxd7 fxe4 $19) 19... Nxc3 {[%emt 0:10:43]} 20. Rxc3 {[%emt 0:01:01][%cal Oe5f7] aiming for Nxf7!} Qd5 {[%emt 0:04:58][%csl Gb7][%cal Rd5g2]} 21. Nf3 {[%emt 0:02:09] Active counter play!} Qa5 {[%emt 0:02:18]} (21... Bb4 $11) 22. Rc7 $14 {[%emt 0:07:13]} Bd5 {[%emt 0:03:45]} 23. Bh4 {[%emt 0:01:30]} f6 {[%emt 0:05:27] Inhibits Ne5.} 24. Bc2 {[%emt 0:02:32]} (24. Bg3 $1 $14) 24... Bd6 $15 {[%emt 0:01:27]} 25. Rc3 {[%emt 0:01:29]} Nf8 {[%emt 0:00:54] [#]} (25... Rac8 $15 {keeps the upper hand.}) 26. Nh2 $2 {[%emt 0:00:19]} (26. Bxf6 $1 $16 {[%cal Of3e5] And now Ne5! would win.} Rdc8 27. Be5 Rxc3 28. bxc3 (28. Bxd6 Bxf3 29. gxf3 Rc6 $11) 28... Bxe5 29. Nxe5 Qxc3 30. Bd3) 26... Rdc8 $17 {[%emt 0:02:23]} 27. Rxc8 {[%emt 0:02:32]} Rxc8 {[%emt 0:00:03]} 28. Ng4 {[%emt 0:00:08]} f5 {[%emt 0:03:12]} (28... Bc4 $15 29. Qe3 f5) 29. Ne3 $1 $11 {[%emt 0:00:26]} Bf4 {[%emt 0:03:12]} (29... g5 $11 {remains equal.} 30. Bg3 f4 31. Nxd5 Qxd5) 30. Be7 {[%emt 0:01:16]} ({White should try} 30. b4 $1 $16 {[%cal Rb4a5]} Qxb4 31. Nxd5 exd5 32. Bxf5) 30... Bxe3 {[%emt 0:01:17]} 31. b4 $132 {[%emt 0:00:51][%mdl 2048] White is fighting back} Bc4 $1 {[%emt 0:00:02]} (31... Rxc2 $2 32. Qxc2 Be4 33. Qxe4 (33. bxa5 Bxc2 34. fxe3 Bxd1 $17) 33... Qxa4 34. Qb1 $18) 32. Qxe3 {[%emt 0:01:55]} (32. bxa5 $2 {too greedy.} Bxe2 33. fxe3 Rxc2 $19) 32... Qd5 {[%emt 0:00:01]} 33. Bxf8 {[%emt 0:00:39]} Kxf8 {[%emt 0:00:07]} 34. Qf4 {[%emt 0:02:54]} Kg8 {[%emt 0:02:17]} 35. Qe5 {[%emt 0:01:26]} Rd8 {[%emt 0:01:37]} 36. Qc7 {[%emt 0:00:51]} b5 {[%emt 0:00:22]} 37. a5 {[%emt 0:00:25]} (37. axb5 $11 {keeps the balance.} axb5 38. Qg3) 37... Qa8 {[%emt 0:00:26]} (37... Qd6 $5 {[%cal Rd6c7]} 38. Qc5 Rd7 $15) 38. Qe5 {[%emt 0:00:19]} Bd5 {[%emt 0:00:36] Threatens to win with ...Qc6.} (38... Qc6 $5 {[%cal Rc4d5]}) 39. Rd3 {[%emt 0:00:26] The position is equal.} Rc8 {[%emt 0:00:54]} 40. Rg3 {[%emt 0:00:00][%csl Gg3][%cal Re5g7]} Qb7 {[%emt 0:00:00]} 41. Bb3 {[%emt 0:03:05]} Bxb3 {[%emt 0:10:56]} 42. Rxb3 {[%emt 0:00:03] Weighted Error Value: White=0.20 (precise) /Black=0.21 (precise)} 1/2-1/2